bitfinex/quotes_ETHUSD_20260304
["timestamp","ask_amount","ask_price","bid_price","bid_amount"]
[1772620589458,1.20370279,2077.0,2076.5,1.98632726]
[1772620589763,1.20563814,2077.1,2076.6,1.99132726]
[1772620590969,0.002,2077.1,2076.7,1.203833]
[1772620591745,0.002,2077.1,2076.6,3.19517294]
[1772620592359,0.002,2077.1,2076.7,1.98632726]
[1772620592565,4.81577297,2077.4,2076.7,1.98632726]
[1772620592780,1.20352272,2077.3,2076.8,1.99132726]
[1772620593070,4.81577297,2077.4,2076.8,3.19006155]
[1772620593240,4.81577297,2077.4,2076.9,0.005]
[1772620593434,4.81577297,2077.4,2076.9,3.24632726]
[1772620594031,4.81577297,2077.4,2076.9,1.99132726]
[1772620594380,4.81577297,2077.4,2077.0,1.255]
[1772620595162,0.002,2077.4,2077.1,1.99132726]
[1772620596972,0.002,2077.4,2077.1,1.26]
[1772620599176,0.002,2077.4,2076.9,1.255]
[1772620599177,2.01332579,2077.4,2076.9,1.255]
[1772620600588,2.01332579,2077.4,2077.1,0.001]
[1772620600750,0.002,2077.2,2076.9,1.255]
[1772620600953,0.002,2077.2,2077.0,1.98632726]
[1772620601176,1.20338347,2077.5,2077.0,1.98632726]
[1772620601546,1.20338347,2077.5,2077.0,3.24232726]
[1772620601742,1.20338347,2077.5,2077.1,1.98632726]
[1772620601948,1.20529008,2077.7,2077.1,1.98632726]
[1772620602171,1.20525435,2077.7,2077.1,1.98632726]
[1772620604076,0.002,2077.7,2077.2,1.98632726]
[1772620604883,2.01332579,2077.7,2077.2,1.256]
[1772620605094,2.01332579,2077.7,2077.1,1.256]
[1772620606161,1.20331151,2077.6,2077.1,1.98632726]
[1772620606472,1.20331151,2077.6,2077.1,3.24232726]
[1772620607886,1.20331151,2077.6,2077.2,1.256]
[1772620608263,2.02917398,2077.6,2076.9,1.99439017]
[1772620608472,2.02917398,2077.6,2077.0,1.256]
[1772620609076,2.02917398,2077.6,2077.1,1.257]
[1772620609582,4.81524605,2077.7,2077.1,3.25039017]
[1772620609964,6.84442003,2077.7,2077.1,3.25039017]
[1772620610169,2.02917398,2077.6,2077.1,1.257]
[1772620610680,1.20336943,2077.5,2077.1,1.257]
[1772620612357,1.20336943,2077.5,2077.1,3.25039017]
[1772620612771,3.23442757,2077.7,2077.1,1.99339017]
[1772620612971,3.23442757,2077.7,2077.2,1.258]
[1772620613388,0.002,2077.4,2077.2,1.258]
[1772620613961,0.002,2077.4,2077.2,3.25139017]
[1772620614182,0.002,2077.4,2077.3,1.99339017]
[1772620614969,0.002,2077.4,2077.2,1.258]
[1772620616120,0.002,2077.6,2077.3,1.99339017]
[1772620616492,0.002,2077.6,2077.2,1.258]
[1772620616790,2.02917398,2077.5,2077.2,1.259]
[1772620616980,1.20342736,2077.4,2077.2,1.259]
[1772620617177,4.81362118,2077.5,2077.2,1.259]
[1772620617178,1.2034133,2077.5,2077.2,3.25239017]
[1772620617689,1.20534627,2077.6,2077.2,1.259]
[1772620617890,1.20534627,2077.6,2077.2,3.25239017]
[1772620618098,1.20534627,2077.6,2077.3,1.258]
[1772620618504,0.002,2077.6,2077.3,3.25139017]
[1772620618794,1.20531726,2077.6,2077.3,3.25139017]
[1772620619372,0.002,2077.6,2077.3,3.25139017]
[1772620620482,0.002,2077.6,2077.4,1.258]
[1772620621697,0.002,2077.6,2077.2,0.001]
[1772620622103,2.03117398,2077.6,2077.2,1.26]
[1772620622320,2.03117398,2077.6,2077.2,0.001]
[1772620623495,1.20336943,2077.5,2077.2,0.001]
[1772620623709,3.23254341,2077.5,2077.2,0.001]
[1772620624200,1.20336943,2077.5,2077.2,0.001]
[1772620624510,1.20336943,2077.5,2077.2,1.99439017]
[1772620625676,1.20531151,2077.6,2077.2,1.99439017]
[1772620625871,4.8126853,2077.9,2077.3,1.99339017]
[1772620626084,6.84185928,2077.9,2077.3,1.99339017]
[1772620626280,2.02917398,2077.8,2077.2,0.001]
[1772620626481,2.02917398,2077.8,2077.3,1.259]
[1772620627077,0.002,2077.4,2077.3,1.26]
[1772620627894,0.002,2077.4,2077.2,1.261]
[1772620628097,0.002,2077.4,2077.2,0.001]
[1772620629506,1.20336943,2077.5,2077.2,0.001]
[1772620629688,1.20322105,2077.8,2077.3,1.99339017]
[1772620629891,4.81476823,2077.9,2077.3,1.99339017]
[1772620630199,2.02917398,2077.8,2077.4,1.26]
[1772620630677,2.02917398,2077.8,2077.2,1.261]
[1772620631078,2.02917398,2077.8,2077.2,0.001]
[1772620631277,2.02917398,2077.6,2077.2,0.001]
[1772620632096,3.232528,2077.6,2077.2,0.001]
[1772620632293,1.20335402,2077.6,2077.2,0.001]
[1772620632604,1.20328603,2077.7,2077.2,1.99439017]
[1772620636010,2.02917398,2077.7,2077.2,0.001]
[1772620636222,4.81289038,2077.8,2077.0,0.001]
[1772620636223,2.02917398,2077.5,2077.0,0.001]
[1772620637079,2.02917398,2077.3,2076.9,0.001]
[1772620637278,2.02917398,2077.1,2076.9,0.001]
[1772620638005,3.23265927,2077.3,2076.9,0.001]
[1772620638917,1.8923583,2077.2,2076.9,0.001]
[1772620639903,3.09590153,2077.2,2077.1,0.001]
[1772620641189,1.8923583,2077.1,2076.7,0.001]
[1772620642115,1.93345542,2076.9,2076.7,0.001]
[1772620642414,1.93345542,2076.9,2076.6,0.001]
[1772620642615,2.39680369,2076.9,2076.3,0.001]
[1772620644328,1.93345542,2076.7,2076.3,0.001]
[1772620644507,1.93345542,2076.7,2076.0,0.001]
[1772620646521,1.93345542,2076.5,2076.0,0.001]
[1772620646814,1.20389097,2076.6,2076.0,2.00062733]
[1772620647188,1.93345542,2076.5,2076.0,2.00062733]
[1772620649107,3.13746235,2076.4,2075.8,0.001]
[1772620649303,3.13746235,2076.4,2075.7,2.75461175]
[1772620650014,1.93345542,2076.3,2075.7,0.75498442]
[1772620650217,1.93345542,2076.3,2075.6,0.001]
[1772620650218,1.93345542,2076.3,2075.6,1e-08]
[1772620651231,1.93345542,2076.1,2075.6,1e-08]
[1772620651398,1.20412291,2076.2,2075.6,1.99962734]
[1772620652315,1.20412291,2076.2,2075.9,0.001]
[1772620653339,1.93345542,2076.1,2075.9,0.001]
[1772620654438,1.20412291,2076.2,2075.9,0.001]
[1772620655025,3.13757833,2076.2,2075.9,0.001]
[1772620655409,1.93345542,2076.1,2075.9,0.001]
[1772620657327,3.13769434,2076.0,2075.9,0.001]
[1772620658135,3.13769434,2076.0,2075.3,0.001]
[1772620658136,1.93345542,2075.9,2075.3,0.001]
[1772620658541,1.93345542,2075.9,2074.6,1.61288297]
[1772620659018,2.66423892,2076.0,2074.3,4.82080512]
[1772620659019,1.93345542,2075.7,2074.3,1.67243706]
[1772620659332,1.93345542,2075.5,2074.3,1.67243706]
[1772620659632,1.93345542,2075.5,2074.3,2.87765918]
[1772620659633,1.93345542,2075.3,2074.3,2.87765918]
[1772620659836,1.93345542,2075.3,2074.3,1.67243706]
[1772620660037,1.93345542,2075.3,2074.3,2.87765477]
[1772620660342,1.93345542,2075.3,2074.3,2.87765799]
[1772620660549,1.93345542,2075.2,2074.4,1.6736427]
[1772620661410,0.61421325,2075.3,2074.4,1.6736427]
[1772620661411,1.81887037,2075.3,2074.6,1.67477868]
[1772620661719,0.61421325,2075.3,2074.6,1.67477868]
[1772620662321,0.5181275,2075.3,2074.6,1.67477868]
[1772620662522,3.13788755,2075.7,2074.6,1.67477868]
[1772620662718,1.93345542,2075.6,2074.6,1.67477868]
[1772620662921,1.93345542,2075.6,2074.7,2.92786981]
[1772620663513,3.13798444,2075.5,2074.8,1.20493541]
[1772620663926,3.13798444,2075.5,2074.8,2.90179209]
[1772620664952,1.93345542,2075.4,2074.8,1.20493541]
[1772620665159,1.93345542,2075.4,2074.6,6.51988695]
[1772620665764,3.13810053,2075.3,2074.6,6.51988695]
[1772620665924,3.13810053,2075.3,2074.6,0.001]
[1772620665925,1.93345542,2075.2,2074.6,0.001]
[1772620666126,1.93345542,2075.2,2074.6,1.20604947]
[1772620667146,1.93345542,2075.2,2074.4,1.70061183]
[1772620667347,1.93345542,2075.2,2074.4,0.001]
[1772620667551,1.93345542,2075.2,2074.4,1.20612214]
[1772620667737,1.93345542,2075.0,2074.4,1.20612214]
[1772620668136,1.93345542,2075.0,2073.4,0.065536]
[1772620668428,2.06556375,2074.0,2072.3,1.70477713]
[1772620668627,2.06556375,2074.0,2072.5,1.70477713]
[1772620668856,2.06556375,2074.0,2072.7,1.70477713]
[1772620669056,2.06556375,2073.9,2072.3,6.06309047]
[1772620669653,2.06556375,2073.7,2072.3,6.06309047]
[1772620669852,1.205502,2073.9,2072.3,6.06309047]
[1772620670053,3.27099746,2074.0,2072.3,4.82509047]
[1772620670255,3.27099746,2074.0,2072.4,1.24]
[1772620670742,2.06556375,2073.9,2072.4,1.24]
[1772620671147,3.72233417,2074.2,2072.5,0.065536]
[1772620671343,0.45144417,2074.2,2072.7,1.81915709]
[1772620671533,2.06556375,2074.5,2073.1,1.81915709]
[1772620671732,4.82004113,2074.7,2073.5,1.81915709]
[1772620671932,6.88560488,2074.7,2073.5,1.81915709]
[1772620672328,2.06556375,2074.7,2073.5,1.81915709]
[1772620672534,1.20491919,2074.9,2073.5,1.81915709]
[1772620673136,2.06556375,2075.0,2073.5,1.81915709]
[1772620673337,1.54460073,2075.2,2073.9,1.83096109]
[1772620673541,1.54460073,2075.2,2074.1,1.83096109]
[1772620673742,1.54460073,2075.2,2074.2,3.03624505]
[1772620673743,0.33988784,2075.2,2074.2,3.03624505]
[1772620673938,1.54461007,2075.2,2074.2,3.03624505]
[1772620674161,0.33988784,2075.2,2074.2,3.03624505]
[1772620674337,0.33988784,2075.2,2074.3,1.83126767]
[1772620674754,3.61016622,2075.2,2074.2,1.20528396]
[1772620674928,3.61016622,2075.2,2074.4,1.243]
[1772620675557,3.61016622,2075.2,2074.2,1.20528396]
[1772620675754,3.61017526,2075.2,2074.3,1.244]
[1772620675962,3.61017526,2075.2,2074.4,1.244]
[1772620676470,2.06556375,2075.1,2073.9,4.82174014]
[1772620676774,2.06556375,2075.1,2074.0,2.44940019]
[1772620677633,1.20481927,2075.0,2073.8,1.20551644]
[1772620677838,2.06556375,2074.9,2073.8,1.20551644]
[1772620678635,2.06556375,2074.9,2073.6,2.45058934]
[1772620679781,2.06556375,2074.7,2073.6,2.45058934]
[1772620680074,2.06556375,2074.7,2073.6,1.20558934]
[1772620680440,2.06556375,2074.7,2073.5,1.20565554]
[1772620681377,2.06556375,2074.7,2073.6,1.83256806]
[1772620681590,3.27049916,2074.8,2073.6,1.83256806]
[1772620681770,3.27061532,2074.6,2073.7,1.20557457]
[1772620682083,2.06556375,2074.5,2073.6,2.45158803]
[1772620682972,2.06556375,2074.5,2073.6,4.28422785]
[1772620683557,2.06556375,2074.5,2073.6,1.20558803]
[1772620683739,2.06556375,2074.3,2073.3,4.82299894]
[1772620683941,1.20514729,2074.5,2073.4,1.83268628]
[1772620684442,3.2706457,2074.6,2073.4,1.83268628]
[1772620684666,2.06556375,2074.5,2073.3,4.82299894]
[1772620684979,2.06556375,2074.5,2073.3,6.06899894]
[1772620685266,2.86246117,2074.4,2073.3,1.246]
[1772620685436,2.06556375,2074.3,2073.3,1.246]
[1772620685641,2.06556375,2074.3,2073.2,2.45185283]
[1772620686268,2.06556375,2074.1,2073.2,2.45185283]
[1772620686572,2.06556375,2074.1,2073.1,6.70758304]
[1772620686573,2.06556375,2074.1,2073.1,1.88412173]
[1772620686767,2.86176342,2074.0,2073.1,1.88412173]
[1772620686941,2.06556375,2073.9,2073.1,3.09004236]
[1772620687142,2.06556375,2073.9,2073.1,4.33704236]
[1772620688278,3.27106389,2073.9,2073.1,4.33704236]
[1772620688871,1.2054242,2074.0,2073.1,4.33704236]
[1772620689046,1.20538709,2074.1,2073.1,4.33704236]
[1772620689251,1.20538709,2074.1,2073.1,6.17140996]
[1772620689659,2.06556375,2074.2,2073.1,6.17140996]
[1772620689863,2.06556375,2074.6,2073.2,1.8343676]
[1772620690171,2.06556375,2074.6,2073.3,1.247]
[1772620690469,2.06556375,2074.4,2073.4,1.247]
[1772620690674,2.06556375,2074.2,2073.4,1.247]
[1772620691354,2.06556375,2074.2,2073.3,1.20680436]
[1772620692345,2.06556375,2074.0,2073.3,0.001]
[1772620692545,2.06556375,2074.0,2073.3,1.248]
[1772620692968,2.06556375,2074.0,2073.3,0.001]
[1772620693844,2.06556375,2074.0,2073.1,1.88412173]
[1772620694244,1.20534207,2074.1,2073.1,1.88412173]
[1772620694245,2.06556375,2073.8,2073.1,1.73954046]
[1772620694450,2.06556375,2073.6,2073.1,1.73954046]
[1772620694868,2.06556375,2073.6,2073.0,0.001]
[1772620695071,2.06556375,2073.4,2073.0,0.001]
[1772620695280,2.06556375,2073.4,2072.7,0.001]
[1772620695848,2.86268792,2073.3,2072.7,1.20715397]
[1772620696046,2.06556375,2073.4,2072.7,1.20715189]
[1772620696671,1.20580716,2073.3,2072.7,0.001]
[1772620697784,3.27137091,2073.3,2072.7,0.001]
[1772620699871,2.06556375,2073.3,2072.7,0.001]
[1772620700094,3.21098977,2073.5,2072.7,0.001]
[1772620700307,2.00526336,2073.4,2072.7,0.001]
[1772620700894,3.21081019,2073.8,2072.7,1.83822769]
[1772620701261,3.21081019,2073.8,2072.9,1.83683296]
[1772620701654,2.00526336,2074.1,2072.9,1.83683296]
[1772620702604,3.35309091,2074.3,2072.9,2.13726309]
[1772620703362,3.35309091,2074.3,2073.1,1.9877781]
[1772620703862,3.35309091,2074.3,2073.2,3.2337781]
[1772620703863,2.14582414,2074.2,2073.2,3.2337781]
[1772620704062,1.20726677,2074.3,2073.3,1.9877781]
[1772620704288,0.002,2074.3,2073.3,1.9877781]
[1772620705178,1.20723697,2074.3,2073.4,1.246]
[1772620705382,0.002,2074.3,2073.5,1.20569086]
[1772620705585,0.002,2073.9,2073.2,4.82337766]
[1772620705790,2.14782414,2073.9,2073.0,1.20593783]
[1772620705962,2.14782414,2073.9,2072.9,0.001]
[1772620706161,2.14582414,2073.7,2072.9,0.001]
[1772620707593,3.35145685,2073.6,2072.9,0.001]
[1772620708663,1.20561698,2073.7,2072.9,0.001]
[1772620708968,1.20555874,2073.8,2072.9,0.001]
[1772620709666,1.20555874,2073.8,2072.9,3.19481794]
[1772620710482,6.96984379,2073.9,2073.1,1.9877781]
[1772620710483,0.002,2073.9,2073.1,1.9877781]
[1772620710882,0.002,2074.1,2073.1,1.9877781]
[1772620711594,0.002,2074.1,2073.3,1.9877781]
[1772620711780,0.002,2074.3,2073.4,1.9877781]
[1772620712902,0.002,2074.3,2073.5,1.9877781]
[1772620713095,0.002,2074.3,2073.4,1.239]
[1772620713393,0.002,2074.3,2073.4,3.2267781]
[1772620713594,0.002,2074.3,2073.5,1.20569086]
[1772620713978,0.002,2074.3,2073.5,4.43346896]
[1772620714991,0.002,2074.3,2073.6,1.9877781]
[1772620715192,3.35070148,2074.9,2073.6,1.9877781]
[1772620715371,1.20487734,2074.9,2073.6,1.9877781]
[1772620715771,2.14582414,2074.9,2073.8,1.9877781]
[1772620716301,4.82150937,2075.0,2073.8,1.9877781]
[1772620716672,0.002,2075.0,2073.8,1.9877781]
[1772620717984,0.002,2075.0,2074.2,1.9877781]
[1772620718197,0.32669751,2075.1,2074.4,1.9877781]
[1772620718778,0.002,2075.5,2074.4,1.9877781]
[1772620719984,0.002,2075.5,2074.6,1.9877781]
[1772620720187,0.002,2074.8,2074.6,1.9877781]
[1772620720394,0.002,2075.5,2074.6,1.9877781]
[1772620720598,0.002,2075.5,2074.6,1.9477781]
[1772620720800,0.002,2075.0,2074.6,1.9477781]
[1772620721002,0.002,2075.0,2074.7,1.241]
[1772620721178,0.002,2075.3,2074.7,3.2287781]
[1772620721383,0.002,2075.3,2074.8,1.9877781]
[1772620722007,0.002,2075.3,2074.9,1.20487734]
[1772620722202,0.002,2075.3,2074.8,2.44590124]
[1772620722916,0.002,2075.3,2074.7,1.20495039]
[1772620723090,2.14782414,2075.3,2074.6,2.44600663]
[1772620724201,0.002,2075.3,2074.6,2.44600663]
[1772620724399,0.002,2075.5,2074.7,1.9877781]
[1772620726210,0.002,2075.5,2074.8,1.20493541]
[1772620726393,0.002,2075.5,2074.8,3.19271351]
[1772620727712,0.002,2075.5,2074.9,1.241]
[1772620728315,0.002,2075.5,2075.0,1.20481927]
[1772620728516,0.002,2075.9,2075.0,3.40737705]
[1772620728816,0.002,2075.9,2075.1,2.20255778]
[1772620729694,1.20630223,2075.9,2075.1,2.20255778]
[1772620730221,1.20630467,2075.9,2075.1,2.20255778]
[1772620730419,1.20630467,2075.9,2074.8,2.1002414]
[1772620730420,2.0908999,2075.8,2074.8,2.1002414]
[1772620730617,2.0908999,2075.8,2074.8,3.30516568]
[1772620731623,2.0908999,2075.8,2074.8,2.1002414]
[1772620732222,2.0908999,2075.8,2074.5,1.242]
[1772620732388,2.0908999,2075.6,2074.4,1.20516285]
[1772620732589,2.0908999,2075.6,2074.2,1.242]
[1772620732924,2.0908999,2075.4,2074.2,1.242]
[1772620733099,2.0908999,2075.2,2073.9,1.68019312]
[1772620733304,2.0908999,2075.2,2073.9,2.88565107]
[1772620733728,2.0908999,2075.2,2075.0,0.001]
[1772620734019,2.0908999,2075.0,2074.8,0.001]
[1772620734199,2.0908999,2075.0,2073.9,1.68019312]
[1772620734397,2.0908999,2074.8,2073.9,1.68019312]
[1772620735320,2.0908999,2074.8,2073.9,0.001]
[1772620736021,2.0908999,2074.8,2073.7,0.001]
[1772620736399,2.0908999,2074.6,2073.7,0.001]
[1772620736601,2.0908999,2074.4,2073.7,0.001]
[1772620736804,2.0908999,2074.2,2073.7,0.001]
[1772620738394,3.29624197,2074.1,2073.7,0.001]
[1772620739829,1.20532749,2074.2,2073.7,0.001]
[1772620741224,1.20521037,2074.4,2073.7,0.001]
[1772620741413,4.82026331,2074.6,2073.7,0.001]
[1772620741814,2.0908999,2074.5,2073.7,0.001]
[1772620743113,3.29606765,2074.4,2073.7,0.001]
[1772620743316,2.0908999,2074.3,2073.7,0.001]
[1772620743528,2.0908999,2074.3,2073.5,0.001]
[1772620745320,2.0908999,2074.1,2073.5,0.001]
[1772620745628,2.0908999,2074.1,2073.7,0.001]
[1772620746127,2.0908999,2074.1,2073.5,0.001]
[1772620747407,1.20536379,2074.1,2073.5,0.001]
[1772620749744,2.0908999,2074.2,2073.5,0.001]
[1772620752324,1.20534207,2074.1,2073.5,0.001]
[1772620752518,2.0908999,2074.0,2073.5,0.001]
[1772620754536,3.29635821,2073.9,2073.5,0.001]
[1772620754741,2.0908999,2073.8,2073.2,0.001]
[1772620756631,1.20557457,2073.7,2073.2,0.001]
[1772620756846,2.0908999,2073.6,2073.2,0.001]
[1772620757244,2.0908999,2073.6,2073.4,0.001]
[1772620757457,2.0908999,2073.6,2073.2,0.001]
[1772620757458,2.0908999,2073.5,2073.2,0.001]
[1772620757634,1.446,2073.6,2073.2,0.001]
[1772620757952,1.20557457,2073.7,2073.2,0.001]
[1772620758861,6.99511371,2074.0,2073.2,0.001]
[1772620759739,6.99511371,2074.0,2073.2,2.11337586]
[1772620759740,1.20540019,2074.0,2073.2,2.11337586]
[1772620760449,2.17348637,2073.9,2073.2,0.001]
[1772620760654,1.20557457,2073.7,2073.2,0.001]
[1772620761364,1.20557457,2073.7,2073.2,2.11337586]
[1772620762150,2.65249056,2073.9,2073.2,2.11337586]
[1772620763264,2.65249056,2073.9,2073.3,1.20580716]
[1772620763565,2.65249056,2073.9,2073.3,3.46829783]
[1772620763772,1.2073775,2074.1,2073.4,2.26249067]
[1772620763974,0.002,2074.1,2073.4,2.26249067]
[1772620764972,1.20520661,2074.4,2073.5,2.26249067]
[1772620765972,1.20515569,2074.5,2073.7,2.26249067]
[1772620766293,0.002,2074.6,2073.8,2.26249067]
[1772620766687,1.20497417,2074.8,2073.8,2.26249067]
[1772620767760,1.20486425,2075.0,2073.8,2.26249067]
[1772620767969,4.81879583,2075.3,2074.0,2.26249067]
[1772620768167,4.81879583,2075.3,2073.9,1.20545831]
[1772620768168,4.81879583,2075.3,2074.2,2.26249067]
[1772620768335,7.06108805,2075.3,2074.2,2.26249067]
[1772620768535,7.06108805,2075.3,2074.0,2.26249067]
[1772620768536,2.24229222,2075.1,2074.0,2.26249067]
[1772620769155,2.24229222,2074.9,2074.0,2.26249067]
[1772620769959,1.449,2075.2,2073.7,3.46805091]
[1772620769960,2.24229222,2074.7,2073.7,3.46805091]
[1772620770167,2.24229222,2074.7,2074.0,2.26249067]
[1772620770168,1.20505157,2074.6,2074.0,2.26249067]
[1772620770554,0.002,2074.4,2074.0,2.26249067]
[1772620770755,0.002,2074.4,2073.9,2.26249067]
[1772620772268,0.002,2074.4,2074.0,3.46789086]
[1772620773267,0.002,2074.4,2074.1,2.26249067]
[1772620773669,0.002,2074.4,2073.8,2.26249067]
[1772620774248,0.002,2074.4,2073.8,3.46798117]
[1772620775166,0.002,2074.4,2073.8,2.26249067]
[1772620775369,0.002,2074.4,2073.8,3.46800085]
[1772620775768,0.002,2074.4,2073.7,2.26249067]
[1772620776845,0.002,2074.4,2073.7,3.46805777]
[1772620777273,2.24429222,2074.4,2073.5,3.49249067]
[1772620777566,2.24429222,2074.4,2073.6,2.26249067]
[1772620779166,0.002,2074.4,2073.8,2.26249067]
[1772620780650,2.24429222,2074.4,2073.6,2.26249067]
[1772620781051,3.44751807,2074.3,2073.6,2.26249067]
[1772620781464,3.44751807,2074.3,2073.6,3.46812177]
[1772620781665,1.20522585,2074.3,2073.7,2.26249067]
[1772620782389,1.20717855,2074.4,2073.7,2.26249067]
[1772620782589,1.20717855,2074.4,2073.8,0.001]
[1772620782888,1.20717855,2074.4,2073.8,2.26349067]
[1772620783085,1.20717855,2074.4,2073.8,3.46899774]
[1772620784682,0.002,2074.4,2073.9,2.26249067]
[1772620785292,2.24429222,2074.4,2073.8,0.001]
[1772620786557,0.002,2074.4,2073.9,2.26249067]
[1772620787570,0.002,2074.4,2074.0,2.26249067]
[1772620788178,2.24429222,2074.4,2073.8,0.001]
[1772620789888,2.24429222,2074.4,2073.8,2.14468851]
[1772620789889,1.20522585,2074.3,2073.8,2.14468851]
[1772620791898,4.82290343,2074.4,2073.8,2.14468851]
[1772620793495,2.07329004,2074.3,2073.6,2.4366259]
[1772620793998,1.20528396,2074.2,2073.6,2.4366259]
[1772620794674,2.07329004,2074.1,2073.6,2.4366259]
[1772620794872,1.20528396,2074.2,2073.7,1.8229738]
[1772620796093,1.20528396,2074.2,2074.0,0.001]
[1772620799200,2.07329004,2074.1,2073.9,0.001]
[1772620799496,2.07329004,2074.1,2073.5,1.80580114]
[1772620799497,2.07329004,2074.1,2073.5,3.01149106]
[1772620799800,2.07329004,2074.1,2073.6,0.001]
[1772620799973,2.07329004,2074.3,2073.6,1.80580114]
[1772620800911,0.002,2074.4,2073.8,1.80036689]
[1772620801203,0.002,2074.4,2074.0,1.79590255]
[1772620802580,2.07529004,2074.4,2074.1,0.001]
[1772620802801,2.07529004,2074.4,2073.9,0.001]
[1772620803212,1.20522585,2074.3,2073.9,0.001]
[1772620803414,0.002,2074.4,2073.9,1.7861657]
[1772620803582,0.002,2074.6,2074.0,1.7851657]
[1772620804106,0.002,2074.9,2074.2,1.78286074]
[1772620804300,1.20494044,2074.8,2074.2,1.78286074]
[1772620804806,3.27823048,2074.8,2074.2,1.78286074]
[1772620804985,3.27823048,2074.8,2074.3,0.001]
[1772620805191,2.07329004,2074.7,2074.3,0.001]
[1772620805501,3.27833069,2074.7,2074.3,0.001]
[1772620805803,1.20497263,2074.8,2074.3,0.001]
[1772620806005,1.20497263,2074.8,2074.3,1.77522858]
[1772620806884,1.20690115,2074.9,2074.3,1.77522858]
[1772620807705,0.002,2074.9,2074.5,1.76991236]
[1772620808612,0.002,2074.9,2074.6,0.001]
[1772620808822,1.20473327,2075.2,2074.6,1.76663719]
[1772620808982,2.07329004,2075.3,2074.7,1.74945256]
[1772620809181,1.2046239,2075.4,2074.7,1.74945256]
[1772620809388,1.2046239,2075.4,2074.8,1.75045256]
[1772620809683,1.2046239,2075.4,2074.9,2.9543299]
[1772620810286,3.27974883,2075.7,2075.1,1.78053514]
[1772620811009,0.002,2075.2,2075.1,1.78053514]
[1772620811386,1.20619,2076.1,2075.3,1.77819918]
[1772620811494,2.07329004,2076.0,2075.4,1.233]
[1772620811690,0.001,2076.1,2075.6,1.77819918]
[1772620812546,2.07329004,2076.7,2075.6,1.77220961]
[1772620812698,6.88870381,2076.7,2075.6,1.77220961]
[1772620813024,3.27712304,2076.7,2075.6,1.77220961]
[1772620813409,1.203833,2076.7,2075.6,1.77220961]
[1772620813609,1.203833,2076.7,2075.8,1.76808543]
[1772620814026,3.27712304,2076.7,2075.8,1.76808543]
[1772620814539,3.27712304,2076.7,2075.7,1.20441296]
[1772620814540,2.07329004,2076.6,2075.7,1.234]
[1772620815094,2.07329004,2076.6,2075.7,2.99358268]
[1772620815299,1.203833,2076.7,2075.8,1.75958268]
[1772620815822,1.203833,2076.7,2076.0,1.75958268]
[1772620816416,3.27712304,2076.7,2076.0,1.75958268]
[1772620816608,2.07329004,2076.6,2075.9,1.20429693]
[1772620816803,2.07329004,2076.6,2075.7,4.19377292]
[1772620817224,1.203833,2076.7,2075.8,1.75119663]
[1772620817999,3.27705032,2076.9,2076.0,1.74703571]
[1772620818204,3.27705032,2076.9,2075.9,1.20429693]
[1772620818205,1.20376028,2076.9,2076.2,1.74703571]
[1772620818404,1.20376028,2076.9,2076.3,2.97973309]
[1772620819336,1.20370311,2077.0,2076.3,2.97973309]
[1772620820309,1.20370311,2077.0,2076.4,1.20400693]
[1772620820834,3.27892732,2077.1,2076.4,1.20400693]
[1772620821032,2.07529004,2077.1,2076.4,1.20400693]
[1772620821240,2.04912442,2077.0,2076.3,2.4380464]
[1772620821632,2.04912442,2077.0,2076.0,2.97663744]
[1772620821799,2.04912442,2077.0,2076.0,3.00639969]
[1772620822429,2.04912442,2077.0,2075.7,4.81755236]
[1772620822430,2.16738594,2076.8,2075.8,4.20532003]
[1772620822658,2.16738594,2076.8,2076.5,0.001]
[1772620822831,0.002,2076.8,2076.5,0.001]
[1772620823534,2.16938594,2076.8,2076.3,0.001]
[1772620824205,3.37121894,2076.7,2076.3,0.001]
[1772620824832,3.37121894,2076.7,2076.0,0.001]
[1772620824833,2.16738594,2076.6,2076.0,0.001]
[1772620825031,2.16938594,2076.8,2076.0,1.75680412]
[1772620825233,1.203833,2076.7,2076.0,1.75680412]
[1772620825818,3.37319077,2076.8,2076.1,1.234]
[1772620826319,3.37319077,2076.8,2076.2,1.20412291]
[1772620826917,1.20580483,2076.8,2076.2,2.9908245]
[1772620827114,3.37319077,2076.8,2076.2,1.78670159]
[1772620827353,3.37319077,2076.8,2076.1,2.43817903]
[1772620827525,2.16938594,2076.8,2076.1,2.43817903]
[1772620827726,3.37317669,2076.8,2076.2,1.78257253]
[1772620829431,3.37317669,2076.8,2076.1,1.234]
[1772620829432,2.16738594,2076.7,2076.1,1.234]
[1772620830549,2.16738594,2076.7,2076.0,0.001]
[1772620831572,2.16738594,2076.5,2076.0,0.001]
[1772620833456,3.37139287,2076.4,2076.0,0.001]
[1772620833661,2.16738594,2076.3,2076.0,0.001]
[1772620835171,2.16738594,2076.3,2076.2,0.001]
[1772620835863,3.37145086,2076.3,2076.2,0.001]
[1772620836359,2.16738594,2076.2,2075.7,0.001]
[1772620837581,1.2040503,2076.4,2075.7,1.74081668]
[1772620837756,6.98298145,2076.6,2075.8,2.94417162]
[1772620837950,1.20394895,2076.5,2075.8,2.94417162]
[1772620838157,1.20394895,2076.5,2075.9,1.77090639]
[1772620839167,3.37133489,2076.5,2075.9,1.77090639]
[1772620839370,3.37133489,2076.5,2075.7,2.97045445]
[1772620839761,1.20406492,2076.3,2075.7,0.001]
[1772620840075,1.20406492,2076.3,2075.7,1.76216401]
[1772620840751,3.37145086,2076.3,2075.7,1.76216401]
[1772620842475,3.37145086,2076.3,2075.7,2.96657502]
[1772620843155,2.16738594,2076.2,2075.7,0.001]
[1772620844676,2.16738594,2076.0,2075.7,0.001]
[1772620845201,2.16738594,2076.0,2075.3,2.11511674]
[1772620845389,2.16738594,2076.0,2075.3,3.31975892]
[1772620845551,2.16738594,2076.0,2075.4,1.73273151]
[1772620846186,2.16738594,2076.0,2075.3,2.11511674]
[1772620846557,2.16738594,2075.8,2075.3,2.11511674]
[1772620846786,2.16738594,2075.8,2075.5,0.001]
[1772620848692,1.20441296,2075.7,2075.5,0.001]
[1772620850393,1.20432994,2075.9,2075.5,0.001]
[1772620850607,2.1409527,2075.9,2075.5,0.001]
[1772620850803,1.20423892,2076.1,2075.5,0.001]
[1772620851004,6.95797038,2076.0,2075.5,0.001]